[Event "Karel Janecek Open 2024"]
[Site "Prague"]
[Date "2024.02.29"]
[Round "2.8"]
[White "Nemitz, Alfred"]
[Black "Bharath Subramaniyam H"]
[Result "0-1"]
[ECO "D00"]
[WhiteElo "2223"]
[BlackElo "2515"]
[Annotator "TA"]
[PlyCount "82"]
[EventDate "2024.02.22"]
[EventType "swiss"]
[EventCountry "CZE"]
[SourceTitle "playchess.com"]
[Source "ChessBase"]
[SourceQuality "1"]
[TimeControl "40/5400+30:1800+30"]

{[%evp 9,82,0,0,1,10,1,20,0,23,0,0,0,19,26,64,16,28,-18,-19,-15,-11,-20,-1,-12,3,-20,-20,-21,-37,-28,-13,-84,-43,-109,-99,-102,0,-107,-68,-73,-4,-291,-278,-267,-230,-308,-297,-885,-933,-995,-904,-916,-902,-916,-879,-861,-836,-836,-390,-369,-367,-958,-956,-796,-742,-1356,-1314,-29955,-12847,-29984,-29985,-29985,-29986,-29989,-29990]} 1. d4 {[%emt 0:04:21]} Nf6 {[%emt 0:00:14]} 2. Nc3 {[%emt 0:00:16]} d5 {[%emt 0:00:45]} 3. Bf4 {[%emt 0:00:09]} g6 {[%emt 0:06:46]} 4. e3 {[%emt 0:01:03]} Bg7 {[%emt 0:00:10]} 5. h4 {[%emt 0:00:34]} h5 {[%emt 0:10:03]} 6. Nf3 {[%emt 0:01:11]} (6. Nb5 $5 Na6 $8 7. Nc3 $11) 6... O-O {[%emt 0:01:04][%cal Oc7c5]} 7. Be2 {[%emt 0:01:04]} c6 {[%emt 0:08:25]} 8. Ne5 {[%emt 0:10:13] The position is equal.} Nbd7 {[%emt 0:05:25]} 9. f3 {[%emt 0:01:06]} Nxe5 {[%emt 0:05:43]} 10. Bxe5 {[%emt 0:13:04]} b5 {[%emt 0:10:19][%cal Bb7b5,Bb5b4][%mdl 32]} 11. Qd2 {[%emt 0:01:38]} Bh6 {[%emt 0:07:02]} 12. Bf4 {[%emt 0:10:22]} (12. O-O-O $14 {might be stronger.}) 12... Bg7 {[%emt 0:06:18]} 13. a4 {[%emt 0:07:28]} (13. O-O-O $142) 13... b4 $11 {[%emt 0:03:13]} 14. Nd1 {[%emt 0:01:10]} a5 {[%emt 0:11:05]} 15. Nf2 {[%emt 0:04:11]} Nd7 {[%emt 0:03:35]} 16. g4 {[%emt 0:02:08]} e5 {[%emt 0:01:31]} 17. dxe5 {[%emt 0:07:08]} Nxe5 {[%emt 0:00:16]} 18. O-O-O {[%emt 0:00:49] And now gxh5 would win.} hxg4 {[%emt 0:06:24]} 19. fxg4 {[%emt 0:10:02]} Qf6 {[%emt 0:05:00]} 20. Qd4 {[%emt 0:06:07]} (20. g5 $1 $11 Qe7 21. h5 gxh5 22. Rxh5) 20... Qe7 {[%emt 0:01:03]} 21. Bg5 {[%emt 0:00:53]} (21. Qd2 $1 $15) 21... Qe6 $36 {[%emt 0:01:21][%mdl 2048] ...Nc4 would now be deadly. Black has strong initiative.} 22. Qf4 {[%emt 0:01:35] [#]} Ba6 {[%emt 0:04:23]} (22... b3 $1 $17 {[%cal Rb3c2] White must now prevent ...bxc2.} 23. Bh6 (23. cxb3 Rb8 $17) 23... bxc2 24. Kxc2 Bxh6 25. Qxh6 Qe7) 23. Nd3 {[%emt 0:05:04]} (23. Bxa6 $11 {was the only way to keep the balance.} Rxa6 24. Bh6) 23... Bxd3 {[%emt 0:00:53]} 24. cxd3 {[%emt 0:03:10]} c5 {[%emt 0:00:08]} (24... f5 $17 {[%cal Rf5g4]} 25. gxf5 Rxf5) 25. d4 $2 {[%emt 0:01:57][%mdl 8192] [#] White does not recover from this.} (25. Bh6 $1 $11 {and White has nothing to worry.}) 25... cxd4 $1 $19 {[%emt 0:00:21]} 26. exd4 {[%emt 0:00:01]} Nc4 {[%emt 0:01:14]} 27. Bxc4 {[%emt 0:02:13]} dxc4 {[%emt 0:00:06]} 28. Rhf1 $2 {[%emt 0:03:00]} (28. Rhe1 Qc6 29. Qf2) 28... c3 {[%emt 0:01:00]} 29. d5 {[%emt 0:01:29]} cxb2+ {[%emt 0:00:30]} 30. Kb1 {[%emt 0:00:10]} Qd7 {[%emt 0:00:01]} 31. Bf6 {[%emt 0:01:13]} Qxa4 {[%emt 0:00:02]} 32. Bxg7 {[%emt 0:00:05]} Qa1+ {[%emt 0:00:59]} 33. Kc2 {[%emt 0:00:01]} b1=Q+ {[%emt 0:00:29]} (33... Rac8+ $142 34. Kd2 Qa2) 34. Rxb1 {[%emt 0:00:09]} Rac8+ {[%emt 0:00:51]} (34... Qxg7 $2 35. Qf6 $19) 35. Kd3 $2 {[%emt 0:01:05]} (35. Kd2 Qxg7 36. Rf3) 35... Qa3+ {[%emt 0:00:25]} 36. Kd2 {[%emt 0:01:08]} Kxg7 {[%emt 0:00:03]} 37. Qd4+ {[%emt 0:00:34]} Kg8 {[%emt 0:00:25] aiming for ...Rc3.} 38. h5 {[%emt 0:00:30]} Rc3 {[%emt 0:01:08] ( -> ...Qa2+)} 39. Rfc1 {[%emt 0:00:57]} Qa2+ {[%emt 0:00:40] Black mates.} 40. Kd1 {[%emt 0:00:00]} Re8 {[%emt 0:00:37][%csl Ge8][%cal Ra2e2]} 41. Qd2 {[%emt 0:06:43]} Qa4+ {[%emt 0:00:33] Weighted Error Value: White=1.06/Black=0.41.  Loses game:     	White=1     	---        Mistake:       	White=7     	Black=2      Inaccurate:     	---       	Black=3      OK:         	White=7     	Black=7      Best:        	White=1     	Black=4      Strong:       	---       	Black=1} 0-1

[Event "Karel Janecek Open 2024"]
[Site "Prague"]
[Date "2024.02.29"]
[Round "2.10"]
[White "Koffeman, Timo"]
[Black "Popovic, Dusan"]
[Result "0-1"]
[ECO "B90"]
[WhiteElo "2186"]
[BlackElo "2504"]
[Annotator "TA"]
[PlyCount "78"]
[EventDate "2024.02.22"]
[EventType "swiss"]
[EventCountry "CZE"]
[SourceTitle "playchess.com"]
[Source "ChessBase"]
[SourceQuality "1"]
[TimeControl "40/5400+30:1800+30"]

{[%evp 12,78,26,10,27,5,12,0,-18,-8,0,0,0,-34,19,12,6,14,12,0,28,29,22,2,17,14,18,-56,-50,-165,-165,-228,-212,-237,-236,-230,-216,-211,-215,-202,-177,-177,-159,-232,-212,-283,-252,-364,-360,-396,-356,-395,-391,-380,-389,-470,-399,-478,-465,-1163,-1163,-29994,-29995,-29995,-29996,-29996,-29980,-29984,-29983]} 1. e4 {[%emt 0:00:05]} c5 {[%emt 0:00:06]} 2. Nf3 {[%emt 0:00:06]} d6 {[%emt 0:00:06]} 3. d4 {[%emt 0:00:06]} cxd4 {[%emt 0:00:06]} 4. Nxd4 {[%emt 0:00:05]} Nf6 {[%emt 0:00:07]} 5. Nc3 {[%emt 0:00:10]} a6 {[%emt 0:00:04]} 6. h3 {[%emt 0:00:06]} e5 {[%emt 0:00:42]} 7. Nb3 {[%emt 0:01:17]} Be7 {[%emt 0:00:44]} 8. g4 {[%emt 0:01:02]} h6 {[%emt 0:00:35]} 9. a4 {[%emt 0:06:35]} Be6 {[%emt 0:04:08] The position is equal.} 10. Bg2 {[%emt 0:00:56]} Nc6 {[%emt 0:04:20]} 11. Nd5 {[%emt 0:04:43]} Rc8 {[%emt 0:03:08]} 12. Be3 {[%emt 0:10:23]} Bxd5 {[%emt 0:02:50]} ({Better is} 12... Nd7 $15) 13. exd5 $11 {[%emt 0:00:08]} Na5 {[%emt 0:00:18]} 14. Nxa5 {[%emt 0:05:10]} Qxa5+ {[%emt 0:00:47]} 15. Qd2 {[%emt 0:01:17]} Qd8 {[%emt 0:09:34]} 16. Qb4 {[%emt 0:14:59]} Qc7 {[%emt 0:07:02][%cal Of6d7]} 17. O-O {[%emt 0:04:01]} Nd7 {[%emt 0:02:48][%cal Oe7g5]} 18. a5 {[%emt 0:01:23]} Bg5 {[%emt 0:03:18]} 19. f4 {[%emt 0:04:03]} (19. Bxg5 $11 hxg5 20. Ra3) 19... exf4 $15 {[%emt 0:04:58]} 20. Rxf4 {[%emt 0:09:28] White is on the road to losing.} (20. Bxf4 $15 Bxf4 21. Qxf4) 20... O-O $19 {[%emt 0:08:23][%cal Of8e8] Threatens to win with ...Rfe8!} 21. Raf1 {[%emt 0:02:59]} (21. Re4 $142) 21... Bxf4 {[%emt 0:11:13]} 22. Qxf4 {[%emt 0:01:06]} Ne5 {[%emt 0:01:49]} ({But not} 22... Qxa5 23. Qxd6 Rcd8 24. Qf4 $17) 23. Be4 {[%emt 0:02:57]} Qe7 {[%emt 0:04:01]} 24. Bd4 {[%emt 0:03:53]} Ng6 {[%emt 0:07:21]} 25. Qf5 {[%emt 0:02:23]} Rce8 {[%emt 0:01:32]} 26. Bd3 {[%emt 0:00:36]} Qh4 {[%emt 0:03:12]} 27. Kg2 {[%emt 0:03:32] Dodges Qg3+} (27. Kh2 $17) 27... Re1 {[%emt 0:01:58]} 28. Bf2 {[%emt 0:01:07]} Rxf1 {[%emt 0:00:36]} 29. Bxf1 {[%emt 0:00:16]} (29. Kxf1 $142 Qxh3+ 30. Kg1) 29... Qd8 {[%emt 0:03:27]} 30. b4 {[%emt 0:01:14]} Nh4+ {[%emt 0:05:24]} 31. Bxh4 {[%emt 0:00:06]} Qxh4 {[%emt 0:00:02][%mdl 4096] Endgame. KQR-KQB} 32. Bd3 {[%emt 0:00:21]} g6 {[%emt 0:00:38]} 33. Qd7 {[%emt 0:00:18]} Qf6 {[%emt 0:04:11]} 34. Qxb7 {[%emt 0:02:45]} Re8 {[%emt 0:00:32]} 35. Qxa6 {[%emt 0:01:08]} (35. Qb6 $142 Qf4 36. Qg1) 35... Re3 {[%emt 0:00:35] [#] ( -> ...Qf3+)} 36. Qc4 {[%emt 0:04:00]} Qf3+ {[%emt 0:00:15] Black mates.} 37. Kg1 {[%emt 0:00:25]} Qg3+ {[%emt 0:00:15]} 38. Kh1 {[%emt 0:00:21]} Re1+ {[%emt 0:00:54]} 39. Bf1 {[%emt 0:00:15]} Qf2 {[%emt 0:00:08] Weighted Error Value: White=0.64/Black=0.10 (very precise) .  Mistake:       	White=6     	Black=1      Inaccurate:     	White=4     	Black=1      OK:         	White=10    	Black=17     Best:        	White=1     	---} 0-1

[Event "Karel Janecek Open 2024"]
[Site "Prague"]
[Date "2024.02.29"]
[Round "2.11"]
[White "Sadzikowski, Daniel"]
[Black "Assylov, Miras"]
[Result "0-1"]
[ECO "B11"]
[WhiteElo "2497"]
[BlackElo "2288"]
[Annotator "TA"]
[PlyCount "116"]
[EventDate "2024.02.22"]
[EventType "swiss"]
[EventCountry "CZE"]
[SourceTitle "playchess.com"]
[Source "ChessBase"]
[SourceQuality "1"]
[TimeControl "40/5400+30:1800+30"]

{[%evp 10,116,25,30,25,12,22,21,23,26,17,21,18,13,11,0,0,0,1,0,13,0,0,-11,10,-22,-3,-30,0,-21,-29,-23,-31,-54,-67,-67,-56,-85,-57,-52,-41,-41,-53,-47,-31,-53,-27,-79,-52,-84,-70,-68,-69,-71,-76,-76,-68,-68,-68,-68,-68,-145,-138,-144,-130,-139,-127,-333,-364,-322,-336,-443,-465,-464,-463,-447,-433,-505,-505,-491,-485,-566,-530,-722,-610,-847,0,-649,0,-2158,-1414,-5402,-1598,-7307,-7314,-7300,-7300,-7063,-7009,-6710,-6541,-6534,-6534,-6195,-6095,-5490,-4937,-1743,-1555]} 1. e4 {[%emt 0:00:04]} c6 {[%emt 0:00:13]} 2. Nf3 {[%emt 0:00:19]} d5 {[%emt 0:00:08]} 3. Nc3 {[%emt 0:00:06]} dxe4 {[%emt 0:00:37]} 4. Nxe4 {[%emt 0:00:08]} Nf6 {[%emt 0:00:11]} 5. Qe2 {[%emt 0:00:49]} Nxe4 {[%emt 0:00:15]} 6. Qxe4 {[%emt 0:00:03]} Qd5 {[%emt 0:00:39] Against Bc4. B11: Caro-Kann: Two Knights Variation.} 7. Qh4 {[%emt 0:00:48]} Qf5 {[%emt 0:00:25]} 8. Bc4 {[%emt 0:19:08]} Be6 {[%emt 0:00:38]} 9. O-O {[%emt 0:15:30]} Bxc4 {[%emt 0:00:14]} 10. Qxc4 {[%emt 0:00:05]} Nd7 {[%emt 0:00:13]} 11. a4 {[%emt 0:03:58]} e6 {[%emt 0:09:36]} 12. d4 $146 {[%emt 0:03:00]} ({Predecessor:} 12. a5 Rc8 13. d3 Bd6 14. Qd4 Bb8 15. Qxg7 Qf6 16. Qxf6 Nxf6 17. Bd2 Rg8 18. Rfe1 {1-0 Nikitenko,M (2507)-Naumovich,Y (2163) BLR-ch Minsk 2023 (2)}) 12... Bd6 {[%emt 0:04:14]} 13. Re1 {[%emt 0:11:49]} O-O {[%emt 0:05:13]} 14. a5 {[%emt 0:05:42]} a6 {[%emt 0:03:52]} 15. Qb3 {[%emt 0:03:42]} Qb5 {[%emt 0:04:10]} 16. Qe3 {[%emt 0:02:21]} Bc7 {[%emt 0:13:25]} 17. Qd2 {[%emt 0:08:09]} Rfd8 {[%emt 0:11:19][%cal Bf8d8,Bd8d5,Bd5h5][%mdl 32]} 18. b3 {[%emt 0:07:25]} (18. b4 $5) 18... Nf6 {[%emt 0:09:34]} 19. Qg5 {[%emt 0:06:11]} Rd5 {[%emt 0:07:30]} 20. Qe3 {[%emt 0:01:06] Hoping for c4.} Rh5 {[%emt 0:01:01]} (20... Bxa5 $2 {is the wrong capture.} 21. c4 Qb6 22. cxd5 $18) 21. Ne5 {[%emt 0:06:56]} c5 $1 {[%emt 0:16:43] ...cxd4 would now be deadly.} 22. Bb2 {[%emt 0:03:06]} cxd4 {[%emt 0:02:59]} (22... Bxa5 23. c4 Qb4 24. dxc5 $16) 23. Qxd4 {[%emt 0:00:02]} Bxa5 {[%emt 0:00:59]} (23... Rc8 {is more complex.} 24. Ng4 Ne8 25. Red1 Bxa5 26. Qe4 Bb6) 24. c4 {[%emt 0:00:49]} Qb6 {[%emt 0:00:46]} 25. Qxb6 {[%emt 0:00:39]} Bxb6 {[%emt 0:00:04]} 26. Rad1 {[%emt 0:00:28]} Rf5 {[%emt 0:05:24]} 27. Re2 {[%emt 0:00:01]} h5 {[%emt 0:00:06]} 28. h3 {[%emt 0:00:43]} (28. g3 $11 {remains equal.}) 28... Bc7 {[%emt 0:02:21]} 29. Nd7 {[%emt 0:01:01]} Rd8 $36 {[%emt 0:01:37][%mdl 2048] Black has some pressure.} 30. Nxf6+ {[%emt 0:00:31]} gxf6 {[%emt 0:00:01]} 31. Rxd8+ {[%emt 0:00:34]} Bxd8 $15 {[%emt 0:00:02][%mdl 4096] Endgame. KRB-KRB} 32. Rd2 {[%emt 0:00:12]} Bb6 {[%emt 0:01:29]} 33. b4 {[%emt 0:00:18]} Rf4 $1 {[%emt 0:00:17]} 34. c5 {[%emt 0:00:27]} Bc7 {[%emt 0:00:08]} 35. g3 {[%emt 0:00:57]} (35. b5 $15 Ba5 (35... axb5 36. Rd7 $17) 36. Rd7) 35... Rxb4 $17 {[%emt 0:00:33]} 36. Bxf6 {[%emt 0:00:02]} Rb5 {[%emt 0:00:40]} 37. Be7 {[%emt 0:00:22]} Be5 {[%emt 0:00:25]} 38. f4 $2 {[%emt 0:01:11] [#]} (38. Rd8+ $17 Kg7 39. Rc8) 38... Rb1+ $1 $19 {[%emt 0:00:48]} 39. Kf2 {[%emt 0:00:04] [#]} Rb2 $1 {[%emt 0:00:04]} 40. Ke3 {[%emt 0:00:23]} Rxd2 {[%emt 0:00:21]} 41. Kxd2 {[%emt 0:30:02] KB-KB} Bc7 {[%emt 0:04:55]} 42. Bf6 {[%emt 0:00:00]} Kh7 {[%emt 0:08:53]} 43. Ke3 {[%emt 0:00:00]} Kg6 {[%emt 0:00:14]} 44. Bc3 {[%emt 0:00:00]} f5 {[%emt 0:08:00]} 45. Kd4 {[%emt 0:00:00]} Kf7 {[%emt 0:00:21]} 46. c6 {[%emt 0:00:00]} Bb6+ {[%emt 0:01:16]} 47. Ke5 {[%emt 0:00:00]} Bc7+ {[%emt 0:00:08]} 48. Kd4 {[%emt 0:00:00]} Bb6+ {[%emt 0:00:06]} (48... bxc6 $142 49. Kc5 e5 50. fxe5 Ke6) 49. Ke5 $1 {[%emt 0:00:00]} bxc6 {[%emt 0:00:03]} (49... Bc7+ $2 50. Kd4 $19) 50. Kd6 {[%emt 0:00:00]} Bf2 {[%emt 0:00:30]} 51. Kxc6 {[%emt 0:00:00]} Bxg3 {[%emt 0:00:05]} 52. Be5 {[%emt 0:00:00]} Be1 {[%emt 0:03:06]} 53. Kb6 {[%emt 0:00:00]} a5 {[%emt 0:00:08]} 54. Kb5 {[%emt 0:00:00]} Bd2 {[%emt 0:00:05]} 55. Ka4 {[%emt 0:00:00]} Ke7 {[%emt 0:00:22]} 56. Kb5 {[%emt 0:00:00]} Kd7 {[%emt 0:00:07] ...Bb4 is the strong threat.} 57. Bb8 {[%emt 0:00:00]} Bb4 {[%emt 0:01:08] And now ...Bd6 would win.} 58. Ba7 {[%emt 0:00:00]} Kd6 {[%emt 0:00:25]} 0-1

[Event "Karel Janecek Open 2024"]
[Site "Prague"]
[Date "2024.02.29"]
[Round "2.12"]
[White "Sevcik, Matej"]
[Black "Kraus, Tomas"]
[Result "1/2-1/2"]
[ECO "B07"]
[WhiteElo "2201"]
[BlackElo "2484"]
[Annotator "TA"]
[PlyCount "84"]
[EventDate "2024.02.22"]
[EventType "swiss"]
[EventCountry "CZE"]
[SourceTitle "playchess.com"]
[Source "ChessBase"]
[SourceQuality "1"]
[TimeControl "40/5400+30:1800+30"]

{[%evp 11,84,40,45,24,36,29,22,27,20,18,25,-7,4,-12,-5,-18,-11,-17,-12,-31,-15,-23,-20,-41,-36,-43,-24,-43,-17,-84,-83,-90,-31,-43,-39,-31,-32,-56,-16,-15,-8,-44,-32,-45,0,0,0,0,0,0,0,0,0,0,0,0,0,-8,-22,-50,0,-10,-4,-3,-2,-2,0,-2,0,0,0,0,0,0,0]} 1. d4 {[%emt 0:00:05]} d6 {[%emt 0:00:27]} 2. e4 {[%emt 0:00:52]} Nf6 {[%emt 0:00:14]} 3. Nc3 {[%emt 0:00:05]} e5 {[%emt 0:00:47]} 4. dxe5 {[%emt 0:03:02]} dxe5 {[%emt 0:00:02]} 5. Qxd8+ {[%emt 0:00:11]} Kxd8 {[%emt 0:00:01]} 6. Bc4 {[%emt 0:03:59]} Bb4 {[%emt 0:02:01]} 7. f3 {[%emt 0:02:57]} Ke7 {[%emt 0:02:35]} 8. Nge2 {[%emt 0:02:28]} a5 {[%emt 0:04:55]} 9. Be3 {[%emt 0:11:07]} Nbd7 {[%emt 0:10:55]} 10. O-O-O {[%emt 0:16:55]} c6 {[%emt 0:02:29]} 11. Ng3 {[%emt 0:06:18]} g6 {[%emt 0:03:54]} 12. a4 {[%emt 0:04:48]} Ne8 {[%emt 0:06:14]} 13. Nb1 {[%emt 0:11:52]} (13. Nge2 {looks sharper.} Nd6 14. Ba2 f6 15. h3) 13... Nd6 {[%emt 0:03:59]} 14. Bd3 {[%emt 0:02:05]} (14. Ba2 {seems wilder.} h5 15. Nf1 b6 16. Bf2) 14... Bc5 {[%emt 0:13:47]} 15. Bd2 {[%emt 0:00:30]} Bb6 {[%emt 0:05:56]} 16. Be2 {[%emt 0:04:31]} Nc5 {[%emt 0:02:19][%cal Bd7c5,Bc5e6,Be6d4,Bd4c2][%mdl 32]} 17. b3 {[%emt 0:01:15]} Ne6 {[%emt 0:02:33]} 18. Na3 {[%emt 0:06:53]} Nd4 {[%emt 0:11:36]} 19. Bf1 {[%emt 0:01:06]} Be6 {[%emt 0:02:09]} 20. Ne2 {[%emt 0:00:45]} (20. f4 $11 f6 21. fxe5 fxe5 22. Bg5+ Kf7 23. Nc4 Nxc4 24. Bxc4 Bxc4 25. bxc4) 20... Bc5 $17 {[%emt 0:00:54]} 21. Kb2 {[%emt 0:01:20]} Bxa3+ {[%emt 0:03:51]} (21... b5 $17 22. Nxd4 Bxd4+ 23. c3 Bc5 24. axb5 cxb5 (24... Bxa3+ $2 25. Kxa3 Nxb5+ 26. Ka4 $19)) 22. Kxa3 $15 {[%emt 0:00:02]} Nxc2+ {[%emt 0:00:07]} 23. Kb2 {[%emt 0:00:13]} Nb4 {[%emt 0:03:01] [#] ...Nd3+ would now be deadly. A dynamic duo of knights.} 24. Be3 {[%emt 0:02:15]} Rhd8 {[%emt 0:02:34][%cal Od6c4] ...Nc4+! is the strong threat.} 25. Nc3 {[%emt 0:00:54]} Na6 {[%emt 0:05:55][%cal Ob7b6]} (25... b5 {is interesting.} 26. Be2 bxa4 27. Nxa4 Nb5) 26. Bxa6 {[%emt 0:04:56]} Rxa6 {[%emt 0:01:14]} 27. Rd2 {[%emt 0:00:51]} b6 {[%emt 0:03:58]} 28. Rhd1 {[%emt 0:00:34]} f6 {[%emt 0:00:05]} 29. f4 {[%emt 0:04:29]} exf4 {[%emt 0:00:01]} 30. Bxf4 {[%emt 0:00:08]} Nf7 {[%emt 0:00:01]} 31. Rxd8 {[%emt 0:00:21]} Nxd8 {[%emt 0:00:01]} 32. e5 {[%emt 0:00:14]} Nf7 {[%emt 0:00:36]} 33. exf6+ {[%emt 0:00:10]} Kxf6 {[%emt 0:00:01]} 34. g3 {[%emt 0:03:17]} Ra7 {[%emt 0:01:56]} 35. Ne4+ {[%emt 0:00:49]} Ke7 {[%emt 0:00:31]} (35... Kf5 $15 36. Nc3 g5) 36. Ng5 {[%emt 0:00:32] The position is equal.} Nxg5 {[%emt 0:02:32]} 37. Bxg5+ $11 {[%emt 0:00:03][%mdl 4096] Endgame. KRB-KRB} Kf7 {[%emt 0:00:34]} 38. Rd8 {[%emt 0:02:30]} Rb7 {[%emt 0:02:07]} 39. Bf4 {[%emt 0:00:50]} Ke7 {[%emt 0:02:22]} 40. Bg5+ {[%emt 0:00:49]} Kf7 {[%emt 0:00:04]} 41. Bf4 {[%emt 0:30:33]} Ke7 {[%emt 0:14:16]} 42. Bg5+ {[%emt 0:00:00]} Kf7 {[%emt 0:00:04] Weighted Error Value: White=0.11 (very precise) /Black=0.10 (very precise) .  Mistake:       	White=1     	Black=2      Inaccurate:     	White=3     	Black=3      OK:         	White=12    	Black=13     Best:        	White=3     	Black=1} 1/2-1/2

[Event "Karel Janecek Open 2024"]
[Site "Prague"]
[Date "2024.02.29"]
[Round "2.13"]
[White "Maksimovic, Bojan"]
[Black "Kanakova, Natalie"]
[Result "1-0"]
[ECO "C13"]
[WhiteElo "2497"]
[BlackElo "2169"]
[Annotator "TA"]
[PlyCount "127"]
[EventDate "2024.02.22"]
[EventType "swiss"]
[EventCountry "CZE"]
[SourceTitle "playchess.com"]
[Source "ChessBase"]
[SourceQuality "1"]
[TimeControl "40/5400+30:1800+30"]

{[%evp 38,127,0,8,4,0,-10,0,0,-20,0,0,0,0,0,0,0,0,0,0,0,0,0,0,25,38,12,13,27,31,48,41,82,8,262,256,262,250,258,261,257,262,296,286,305,215,225,222,316,287,104,366,415,340,687,670,739,743,721,700,1361,1174,1417,1464,2187,2187,3311,2701,29976,29974,29973,29963,6127,6179,29970,29972,29973,29974,29974,29972,29972,29971,29970,0,29969,29962,29985,29986,29986,29987,29987,29988]} 1. e4 {[%emt 0:00:04]} e6 {[%emt 0:00:20]} 2. d4 {[%emt 0:00:12]} d5 {[%emt 0:00:05]} 3. Nc3 {[%emt 0:00:13]} dxe4 {[%emt 0:00:12]} 4. Nxe4 {[%emt 0:00:08]} Nd7 {[%emt 0:00:13]} 5. Nf3 {[%emt 0:01:05]} Ngf6 {[%emt 0:00:10]} 6. Bg5 {[%emt 0:05:10]} Be7 {[%emt 0:05:19]} 7. Nxf6+ {[%emt 0:02:40]} Bxf6 {[%emt 0:02:19]} 8. h4 {[%emt 0:00:44]} c5 {[%emt 0:05:06]} 9. Qd2 {[%emt 0:01:38] 9.dxc5 might become the main line.} h6 {[%emt 0:04:02]} 10. Bxf6 {[%emt 0:00:21]} Qxf6 {[%emt 0:01:09]} 11. O-O-O {[%emt 0:00:57] C13: French: Classical System: 4 Bg5 Be7, Alekhine-Chatard Attack.} O-O {[%emt 0:00:50]} 12. Qe3 {[%emt 0:06:00]} cxd4 {[%emt 0:03:16]} 13. Nxd4 $146 {[%emt 0:00:27]} ({Predecessor:} 13. Rxd4 Nb6 14. Bd3 Rd8 15. Rxd8+ Qxd8 16. Rd1 Qf6 17. Qe4 e5 18. Qxe5 Qxe5 19. Nxe5 {1-0 Hector,J (2511)-Reimanis,R (2206) Deltalift op 2014 (6)}) 13... Ne5 {[%emt 0:04:43]} 14. Be2 {[%emt 0:05:36]} Ng6 {[%emt 0:08:08]} 15. g3 {[%emt 0:03:23]} Bd7 {[%emt 0:04:13]} 16. Bf3 {[%emt 0:05:54]} Ne5 {[%emt 0:07:51]} 17. Rhe1 {[%emt 0:01:31]} Nxf3 {[%emt 0:01:20]} 18. Nxf3 {[%emt 0:00:10]} Rfd8 {[%emt 0:01:53]} 19. Ne5 {[%emt 0:00:53]} Be8 {[%emt 0:04:04]} 20. Rxd8 {[%emt 0:00:57]} Qxd8 {[%emt 0:00:20]} 21. Rd1 {[%emt 0:00:32]} Qc7 {[%emt 0:07:39]} 22. f4 {[%emt 0:00:24]} Rc8 {[%emt 0:01:00]} 23. c3 {[%emt 0:03:30]} Qa5 {[%emt 0:06:37]} 24. a3 {[%emt 0:06:42]} Ba4 {[%emt 0:04:43]} 25. Rd4 {[%emt 0:01:10]} Rd8 {[%emt 0:04:44]} 26. Nc4 {[%emt 0:06:33]} Rxd4 {[%emt 0:03:04]} 27. Qxd4 {[%emt 0:00:05]} Qf5 {[%emt 0:10:43]} 28. Ne3 $1 {[%emt 0:01:04]} Qa5 {[%emt 0:01:39]} 29. b4 {[%emt 0:00:54]} Qc7 {[%emt 0:00:45]} 30. c4 {[%emt 0:04:05]} a5 {[%emt 0:02:16]} 31. Kb2 {[%emt 0:01:47]} axb4 {[%emt 0:01:17]} 32. axb4 {[%emt 0:00:05]} Be8 {[%emt 0:00:13]} 33. b5 {[%emt 0:01:33]} f6 {[%emt 0:01:30]} 34. Kb3 $1 {[%emt 0:02:23]} Qa5 {[%emt 0:03:15]} 35. Qd6 {[%emt 0:06:41]} (35. Nd1 $16) 35... Kf7 $2 {[%emt 0:00:30][%mdl 8192]} (35... Qe1 $11 36. Qxe6+ Bf7) 36. f5 $18 {[%emt 0:05:12]} exf5 {[%emt 0:00:51]} 37. Qd5+ {[%emt 0:05:04]} (37. Nxf5 Qe1 38. Qc7+ Kg6 $16) 37... Kf8 {[%emt 0:00:36]} 38. Qc5+ $1 {[%emt 0:02:31]} (38. Nxf5 Qe1 $14) 38... Kg8 {[%emt 0:01:03] [#]} 39. Qe7 $1 {[%emt 0:03:17]} (39. Nxf5 Qa1 $11) (39. Qxf5 Qe1 40. Qf4 Bf7 $11) 39... Bf7 {[%emt 0:00:14]} 40. Qxb7 {[%emt 0:00:31]} Qe1 {[%emt 0:00:58]} 41. Qb8+ {[%emt 0:33:05]} (41. Nxf5 $2 Qb1+ 42. Kc3 Qc1+ (42... Qxf5 $2 43. Qc7 $19) 43. Kb4 (43. Kd4 $2 Qxc4+ 44. Ke3 Qc3+ 45. Kf2 Qc2+ 46. Ke3 Qxf5 $19) 43... Qxc4+ (43... Bxc4 44. Qxg7#) (43... Qb1+ 44. Ka5 $17) 44. Ka5 Qa2+ 45. Kb6 Qf2+ 46. Ka5 Qxf5 $19) 41... Kh7 {[%emt 0:31:13]} 42. Qf4 {[%emt 0:00:36]} (42. Nxf5 $2 {perishes.} Qb1+ 43. Ka4 Qa2+ (43... Qxf5 $2 44. Qc7 $19) 44. Kb4 Qxc4+ (44... Qb1+ $2 45. Ka5 $17) 45. Ka5 Qa2+ 46. Kb4 Qd2+ 47. Kc5 Qc2+ 48. Kb6 Qxf5 $19) 42... Qb1+ {[%emt 0:00:00]} (42... Be6 $142 43. h5 (43. Nxf5 $2 {is the wrong capture.} Qb1+ 44. Kc3 Bxf5 $19) 43... Bf7 44. Qxf5+ Kh8) 43. Ka4 $18 {[%emt 0:00:00]} Qa2+ {[%emt 0:00:00]} 44. Kb4 {[%emt 0:00:00]} Qb2+ {[%emt 0:00:00]} 45. Kc5 {[%emt 0:00:00]} g5 $2 {[%emt 0:00:00]} (45... Qa3+ 46. Kb6 Qd3 47. Qxf5+ (47. Nxf5 Bxc4 48. Qc7 Qxf5 $16) 47... Qxf5 48. Nxf5 Bxc4) 46. Qxf5+ $18 {[%emt 0:00:00]} Kg7 {[%emt 0:00:00]} 47. Nd5 {[%emt 0:00:00]} Qa3+ {[%emt 0:00:00]} 48. Kb6 {[%emt 0:00:00]} Bxd5 {[%emt 0:00:00]} 49. Qxd5 {[%emt 0:00:00]} Qxg3 {[%emt 0:00:00]} 50. hxg5 {[%emt 0:00:00]} Qb8+ {[%emt 0:00:08]} 51. Ka6 {[%emt 0:00:00]} Qc8+ {[%emt 0:00:26]} 52. Ka5 {[%emt 0:00:00]} fxg5 {[%emt 0:01:28]} 53. b6 {[%emt 0:00:00]} g4 {[%emt 0:00:30]} 54. Qe5+ {[%emt 0:00:00]} Kg6 {[%emt 0:00:25]} 55. Qc7 {[%emt 0:00:00]} Qa8+ {[%emt 0:01:52]} 56. Kb5 {[%emt 0:00:00]} Qa3 {[%emt 0:00:31]} 57. b7 {[%emt 0:00:00]} Qb3+ {[%emt 0:00:18]} 58. Kc5 {[%emt 0:00:00]} Qe3+ {[%emt 0:01:41]} 59. Kc6 {[%emt 0:00:00]} Qf3+ {[%emt 0:00:37]} 60. Kc5 {[%emt 0:00:00]} Qe3+ $1 {[%emt 0:00:32] [#]} 61. Kb4 $1 {[%emt 0:00:00]} Qd2+ {[%emt 0:00:51]} 62. Kb5 {[%emt 0:00:00]} Qb2+ {[%emt 0:00:38]} 63. Kc6 {[%emt 0:00:00]} Qg2+ {[%emt 0:00:24]} 64. Kd7 {[%emt 0:00:00]} 1-0